Cogmind - Beta 16 --- EXPLORER MODE // 2025.11.17 @ 09:13:21 Player: K.K.Y. Result: Destroyed by GT-JKM(R) with Subdweller Machine Gun Performance ------------- Evolutions (0) 0 Regions Visited (2) 400 Robots Destroyed (33) 165 Value Destroyed (625) 625 Prototype IDs (0) 0 Alien Tech Used (0) 0 Bonus (0) 0 TOTAL SCORE: 1190 Bonus ------- None Cogmind --------- Core Integrity 0/250 Matter 125/300 Energy 100/100 System Corruption 1% Temperature Cool (0) Movement Core (700) Ox13 Location -10/Subcaves Parts ------- > --- POWER (1) -------- (None) > --- PROPULSION (3) --- (None) > --- UTILITY (2) ------ High-capacity Storage Unit > --- WEAPON (2) ------- (None) > --- INVENTORY (20) --- Structural Scanner Improved Terrain Scanner Peak State ------------ > --- POWER ------------ Ion Engine > --- PROPULSION ------- Light Treads Light Treads Light Treads > --- UTILITY ---------- Improved Heat Sink Medium Storage Unit > --- WEAPON ----------- Datajack Datajack > --- INVENTORY -------- Ion Engine Large Storage Unit High-capacity Storage Unit Structural Scanner Improved Terrain Scanner Beam Cannon Assault Rifle Mining Laser Welding Torch [Rating: 11] Favorites ----------- Power Ion Engine Engine Ion Engine Propulsion Light Treads Treads Light Treads Leg Aluminum Leg Wheel Wheel Utility Improved Heat Sink Device Improved Heat Sink Storage Medium Storage Unit Protection Light Armor Plating Weapon EM Pulse Gun Energy Gun EM Pulse Gun Energy Cannon Beam Cannon Ballistic Gun Assault Rifle Special Weapon Mining Laser Special Melee Weapon Datajack Build | -11 -10 -10 ------- Run | Yrd Mat Sub Slots Evolved 1 | . 1 . Power . | . . . Propulsion 1 | . 1 . Utility . | . . . Weapon . | . . . Parts Attached 27 | 7 18 2 Power 2 | 1 . 1 Engine 2 | 1 . 1 Core . | . . . Reactor . | . . . Propulsion 13 | 2 11 . Treads 3 | . 3 . Leg 3 | 2 1 . Wheel 7 | . 7 . Hover . | . . . Flight . | . . . Utility 4 | 2 2 . Device 1 | . 1 . Storage 2 | 1 1 . Processor . | . . . Hackware . | . . . Protection 1 | 1 . . Artifact . | . . . Weapon 8 | 2 5 1 Energy Gun 2 | 2 . . Energy Cannon 1 | . 1 . Ballistic Gun 1 | . 1 . Ballistic Cannon . | . . . Launcher . | . . . Special Weapon 2 | . 1 1 Impact Weapon . | . . . Slashing Weapon . | . . . Piercing Weapon . | . . . Special Melee Weapon 2 | . 2 . Unidentified Prototypes . | . . . Parts Lost 10 | . . 10 Power 1 | . . 1 Propulsion 3 | . . 3 Utility 1 | . . 1 Weapon 5 | . . 5 Highest Loss Streak 6 | . . 6 To Critical Strikes 1 | . . 1 Average Backups 6 | . 8 5 Power . | . . . Propulsion 1 | . 2 . Utility 1 | . 1 2 Weapon 1 | . 2 1 Tool/Special . | . . . Unused Backups 8 | . 6 2 Power . | . . . Propulsion 5 | . 5 . Utility 3 | . 1 2 Weapon . | . . . Tool/Special . | . . . Average Slot Usage (%) 91 | . 93 89 Engine 11 | . 12 11 Treads 17 | . 9 30 Leg 7 | . 11 . Wheel 8 | . 13 . Device 7 | . 4 11 Storage 12 | . 12 12 Protection 4 | . 7 . Energy Gun 8 | . 12 . Energy Cannon 1 | . 1 1 Ballistic Gun 2 | . 1 5 Special Weapon 3 | . 1 6 Special Melee Weapon 4 | . 3 7 Peak Build Rating 11 | 7 11 10 Average Rating 8 | 5 8 9 On Entrance 5 | . 7 10 Avg Prop Armor Cover (%) . | . . . Naked Turns . | . . . Heaviest Build 49 | 22 49 49 Greatest Support 60 | 20 60 60 Greatest Overweight (x) 15 | 1 5 15 Average Overweight (x) . | . . . Largest Inventory Capacity 20 | 10 20 20 Average Capacity 14 | 9 11 20 Most Carried 10 | 5 10 6 Average Carried 6 | . 8 5 Final Capacity 20 | 10 20 20 Final Carried 6 | 2 6 2 Class Distribution -------------------- 100% | Hacker-Mutant Dominant Class ---------------- Hacker-Mutant | -10/Materials Hacker-Mutant | -10/Subcaves Resources | -11 -10 -10 ----------- Run | Yrd Mat Sub Matter Collected 515 | 222 238 55 Remotely . | . . . Salvage Created 1196 | . 1126 70 Parts 82 | . 77 5 Haulers Intercepted 2 | . 2 . Recyclers Shooed 2 | . 2 . Parts Field Recycled . | . . . Retrieved Matter . | . . . Parts Self-Destructed . | . . . Prevented . | . . . Parts Restored . | . . . Kills | -11 -10 -10 ------- Run | Yrd Mat Sub Combat Hostiles Destroyed 16 | . 14 2 Guns 11 | . 9 2 Cannons 4 | . 4 . AOE 1 | . 1 . Classes Destroyed 10 | . 9 1 Worker 6 | . 6 . Builder 2 | . 2 . Tunneler 2 | . 2 . Hauler 2 | . 2 . Recycler 3 | . 3 . Mechanic 1 | . 1 . Watcher 1 | . 1 . Swarmer 2 | . 2 . Grunt 12 | . 12 . Subdweller 2 | . . 2 Best Kill Streak 9 | . 9 2 Combat Bots Only 4 | . 4 2 Max Kills in Single Turn 3 | . 3 1 Gunslinging 1 | . 1 . Exploded 1 | . 1 . Melee . | . . . Uniques/NPCs Destroyed . | . . . Combat | -11 -10 -10 -------- Run | Yrd Mat Sub Hostile Shots Fired 150 | . 58 92 Missed 32 | . 8 24 Hits 118 | . 50 68 Projectile 118 | . 50 68 Critical Strikes 6 | . . 6 Damage Taken 1374 | . 341 1033 Core 260 | . 39 221 Absorbed by Shields . | . . . Ignored by Resistances 791 | . 226 565 Core Remaining (%) 100 | 100 . . Volleys Fired 147 | . 62 85 Largest 2 | . 2 2 Hottest 100 | . 80 100 Shots Fired 209 | . 103 106 Gun 151 | . 82 69 Cannon 39 | . 18 21 Launcher . | . . . Special 19 | . 3 16 Kinetic 69 | . . 69 Thermal 58 | . 21 37 Explosive . | . . . Electromagnetic 82 | . 82 . Robot Hit Streak 51 | . 25 51 Robot Miss Streak 1 | . 1 1 Penetration Max . | . . . Secondary Targets 1 | . 1 . Max Gunslinging Chain 1 | . 1 . Shots Hit Robots 179 | . 86 93 Core Hits 44 | . 38 6 Critical Kills . | . . . Critical Parts Destroyed . | . . . Critical Strikes 2 | . 2 . Corrupt 2 | . 2 . Melee Attacks 2 | . 1 1 Impact . | . . . Slashing . | . . . Piercing . | . . . Sneak Attacks . | . . . Combat Hostiles . | . . . Follow-up Attacks . | . . . Damage Inflicted 1708 | . 1446 262 Guns 1163 | . 949 214 Cannons 297 | . 297 . Explosions 195 | . 195 . Melee . | . . . Ramming 5 | . 5 . Kinetic 214 | . . 214 Thermal 540 | . 492 48 Explosive . | . . . Electromagnetic 949 | . 949 . Impact . | . . . Slashing . | . . . Piercing . | . . . Highest Corruption 1 | . 1 1 Average Corruption 1 | . 1 1 Corruption Purged . | . . . Corruption Blocked . | . . . Effects 8 | . 4 4 Message Errors 4 | . 3 1 Matter Fused 2 | . 1 1 Heat Flow Errors 1 | . . 1 Alerts 1 | . . 1 Overload Shots . | . . . Overflow Damage . | . . . Projectiles . | . . . Explosions . | . . . Melee . | . . . Knockbacks . | . . . Impact . | . . . Kinetic . | . . . Secondary . | . . . Self-Inflicted Damage 9 | . 9 . Shots 2 | . 2 . Rammed 1 | . 1 . Targets Rammed 1 | . 1 . Kicked . | . . . Crushed . | . . . Highest Temperature 344 | . 344 122 Average Temperature 79 | . 79 78 Received Heat Transfer 324 | . 270 54 Effects 4 | . 4 . Interference 3 | . 3 . Short Circuit 1 | . 1 . Siege Activations . | . . . Martial Activations . | . . . Shielding Activations . | . . . Robots Disrupted . | . . . Combat Hostiles . | . . . Robots Corrupted 1 | . 1 . Combat Hostiles . | . . . Parts Fried 5 | . 5 . Impact Corruptions . | . . . Robots Melted . | . . . Combat Hostiles . | . . . Parts Melted 2 | . 2 . Heat Transferred 979 | . 879 100 Parts Sabotaged . | . . . Parts Stolen . | . . . Parts Stripped . | . . . Power Chain Reactions 4 | . 4 . Alert | -11 -10 -10 ------- Run | Yrd Mat Sub Maximum Alert Level . | . . . Low Security (%) 100 | 100 100 . Level 1 . | . . . Level 2 . | . . . Level 3 . | . . . Level 4 . | . . . Level 5 . | . . . High Security . | . . . Max Security . | . . . Peak Influence 125 | . 125 . Initial . | . . . Average 32 | . 36 . Influence Increases 448 | . 448 . Destroy 0b10 Robot/C 280 | . 280 . Destroy 0b10 Robot/NC 85 | . 85 . Destroy Leader 56 | . 56 . Successful Hack 10 | . 10 . Disable Machine 4 | . 4 . Destroy Structure 13 | . 13 . Influence Decreases 448 | . 448 . Time Decay 448 | . 448 . Squads Dispatched 2 | . 2 . Investigation 2 | . 2 . Extermination . | . . . Reinforcement . | . . . Assault . | . . . Garrison . | . . . Intercept . | . . . Searches Triggered . | . . . Construction Impeded . | . . . Haulers Reinforced . | . . . Active Scanning Responses . | . . . Cargo Convoy Interrupts . | . . . Stealth | -11 -10 -10 --------- Run | Yrd Mat Sub Distress Signals . | . . . Communications Jammed . | . . . Distress Signals . | . . . Times Spotted 22 | . 18 4 Peak Tracking Total 2 | . 2 2 Tactical Retreats . | . . . Traps | -11 -10 -10 ------- Run | Yrd Mat Sub Traps Triggered 5 | . 3 2 Indirectly . | . . . Trap Hack Attempts . | . . . Triggered . | . . . Disarmed 7 | . 7 . Reprogrammed . | . . . Reused . | . . . Traps Extracted . | . . . Installed . | . . . Triggered . | . . . Machines | -11 -10 -10 ---------- Run | Yrd Mat Sub Machines Disabled 2 | . 2 . Max in Single Turn 1 | . 1 . Machines Repaired . | . . . Machines Dismantled . | . . . Machines Sabotaged . | . . . Overloaded Fab Kills . | . . . Hacking | -11 -10 -10 --------- Run | Yrd Mat Sub Machines Accessed 5 | . 5 . Terminals 5 | . 5 . Fabricators . | . . . Repair Stations . | . . . Recycling Units . | . . . Scanalyzers . | . . . Garrison Access . | . . . Total Hacks 17 | . 17 . Successful 11 | . 11 . Failed 6 | . 6 . Catastrophic . | . . . Database Lockouts . | . . . Manual . | . . . Terminals 17 | . 17 . Fabricators . | . . . Repair Stations . | . . . Recycling Units . | . . . Scanalyzers . | . . . Garrison Access . | . . . Terminal Hacks 11 | . 11 . Robot Analysis 2 | . 2 . Branch Access Points 1 | . 1 . Scanalyzer Index 1 | . 1 . Locate Traps 1 | . 1 . Disarm Traps 2 | . 2 . Transport Status 1 | . 1 . Registered Components 1 | . 1 . Zone Layout 2 | . 2 . Fabricator Hacks . | . . . Repair Station Hacks . | . . . Recycling Unit Hacks . | . . . Scanalyzer . | . . . Garrison Access Hacks . | . . . Unauthorized Hacks . | . . . Terminals . | . . . Fabricators . | . . . Repair Stations . | . . . Recycling Units . | . . . Scanalyzers . | . . . Garrison Access . | . . . Data Cores Recovered . | . . . Used . | . . . Hacking Detections 5 | . 5 . Full Trace Events 2 | . 2 . Feedback Events . | . . . Feedback Blocked . | . . . Robot Schematics Acquired . | . . . Robots Built . | . . . Authchips . | . . . Time . | . . . Total Robot Build Rating . | . . . Part Schematics Acquired . | . . . Parts Built . | . . . Authchips . | . . . Time . | . . . Total Part Build Rating . | . . . Part Studies Acquired . | . . . Parts Repaired . | . . . Time . | . . . Parts Recycled . | . . . Recycled Matter . | . . . Retrieved Matter . | . . . Retrieved Components . | . . . Parts Scanalyzed . | . . . Part Schematics Acquired . | . . . Parts Damaged . | . . . Bothacking | -11 -10 -10 ------------ Run | Yrd Mat Sub Used RIF Installer . | . . . Robots Hacked 1 | . . 1 Non-combat . | . . . Combat 1 | . . 1 Robot Hacks Applied 1 | . . 1 parse_system 1 | . . 1 Relay Couplers Released . | . . . Fabnet Peak Effective % . | . . . Robots Rewired . | . . . Allies Hacked . | . . . Hacks Repelled . | . . . Allies | -11 -10 -10 -------- Run | Yrd Mat Sub Total Allies . | . . . Largest Group . | . . . Highest-Rated Group . | . . . Highest-Rated Ally . | . . . Total Orders . | . . . Ally Attacks . | . . . Total Damage . | . . . Kills . | . . . Allies Corrupted . | . . . Allies Melted . | . . . Intel | -11 -10 -10 ------- Run | Yrd Mat Sub Active Infowar (turns) . | . . . Robot Analysis Total 2 | . 2 . Derelict Logs Recovered . | . . . Drone Launches . | . . . Drone Recoveries . | . . . Exploration | -11 -10 -10 ------------- Run | Yrd Mat Sub Turns Passed 1885 | 126 1137 622 Spaces Moved 991 | 77 744 170 Core 31 | 24 2 5 Treads 378 | . 213 165 Legs 260 | 53 207 . Wheels 322 | . 322 . Hover . | . . . Flight . | . . . Fastest Speed 50 | 50 80 160 Average Speed 128 | 145 115 177 Slowest Speed 800 | 190 300 800 Overloaded Moves . | . . . Propulsion Burnouts . | . . . Robots Hopped . | . . . Potential Cave-ins . | . . . Cave-ins Triggered . | . . . Exploration Rate (%) 31 | 4 73 17 Regions Visited 2 Branch Regions 1 Pre-discovered Areas . | . . . Known Exits Taken 2 | 1 1 . Unknown Exits Taken . | . . . Scrap Searched . | . . . Spaces Dug . | . . . Terrain Destroyed 11 | . 11 . Melee . | . . . Projectile . | . . . AOE 11 | . 11 . Terrain Rammed . | . . . Walls Destroyed . | . . . Machines Disabled . | . . . Actions | -11 -10 -10 --------- Run | Yrd Mat Sub Total 1377 | 91 924 362 Wait 147 | . 51 96 Move 989 | 76 743 170 Hop . | . . . Pick Up 29 | 8 20 1 Fast Attach 9 | 1 8 . Attach 19 | 6 9 4 Detach 5 | . 4 1 Swap 4 | . 2 2 Drop 25 | . 23 2 Fire 147 | . 62 85 Melee 2 | . 1 1 Ram 1 | . 1 . Kick . | . . . Crush . | . . . Escape Stasis . | . . . Rewire . | . . . Trap . | . . . Miscellaneous . | . . . Route ------- -11/Scrapyard -10/Materials (discovered 4 exits: *Mat / *Min x2 / *Sub) -10/Subcaves History --------- Turn | Location | Event 34 | -11/Scrapyard | Identified exit to Materials 34 | -11/Scrapyard | Discovered exit to Materials (range 15) 127 | -11/Scrapyard | Entered Materials 127 | -10/Materials | Evolved 1 slot: Propulsion x1 255 | -10/Materials | Identified exit to Mines 255 | -10/Materials | Discovered exit to Mines (range 16) 305 | -10/Materials | Build established: Hacker-Mutant 401 | -10/Materials | Discovered exit to Mines (range 7) 666 | -10/Materials | Identified exit to Materials 666 | -10/Materials | Discovered exit to Materials (range 4) 1255 | -10/Materials | Identified exit to Subcaves 1255 | -10/Materials | Discovered exit to Subcaves (range 7) 1264 | -10/Materials | Entered Subcaves 1265 | -10/Subcaves | Approached by a straggling Scientist 1300 | -10/Subcaves | A swath of the cavern ceiling suddenly collapsed 1695 | -10/Subcaves | Disturbed a concealed Subdweller 1801 | -10/Subcaves | Core integrity fell below 50% 1808 | -10/Subcaves | Lost 3 parts (2n1w) 1861 | -10/Subcaves | Core integrity fell below 20% 1886 | -10/Subcaves | Destroyed by GT-JKM(R) with Subdweller Machine Gun Last Messages --------------- 01780_ Subatomizers dissect the Sub. Monowheel. 01818_ Lgt. Treads destroyed. TE-ULV(c): "I think it's somewhere south of here" 01827_ Subatomizers dissect the Sub. Monowheel. 01830_ Assault Rifle destroyed. 01838_ Subatomizers dissect the Sub. Monowheel. 01848_ Welding Torch destroyed. 01848_ Dropped Mining Laser. 01854_ Ion Engine destroyed. 01856_ Acquired Mining Laser. 01857_ Imp. Heat Sink destroyed. 01863_ Subatomizers dissect the Sub. Monowheel. 01868_ GT-JKM(R) affixes Scrap Shield Fragment to Scrap Shield. TE-ULV(c): "I think it's somewhere south of here" 01878_ Subatomizers dissect the Sub. Monowheel. 01880_ Mining Laser destroyed. Map ----- +----------------------------------------------------+ | | | | | | | | | | | | | | | | | | | | | | | | | | | | | | | | | | | ?????????????????????????????????????????????????? | | ?????????????????????????????????????????????????? | | ?????????????????????????????????????????????????? | | ??????????????##############?????????????????????? | | ?????????????##$ $ <<< ##????????????????????? | | ?????????????#$ $ < < <#????????????????????? | | ?????????????# $ < <<< #????????????????????? | | ?????????????? $ < <<#????????????????????? | | ???????????????? $<